fUST/lending_fUST_20250824
["ID","MTS","AMOUNT","RATE_DAILY","PERIOD"]
[381057171,1755978661224,-151.0,0.00054794,120]
[381057172,1755978661233,-480.0,0.00054794,120]
[381057173,1755978661242,-265.679077,0.00054794,120]
[381057174,1755978661251,-170.76223,0.00054794,120]
[381057175,1755978661261,-480.0,0.00054794,120]
[381057176,1755978661271,-170.76223,0.00054794,120]
[381057177,1755978661280,-170.76223,0.00054794,120]
[381057178,1755978661290,-480.0,0.00054794,120]
[381057179,1755978661299,-170.76223,0.00054794,120]
[381057180,1755978661309,-170.76223,0.00054794,120]
[381057181,1755978661318,-151.0,0.00054794,120]
[381057182,1755978661328,-170.76223,0.00054794,120]
[381057183,1755978661339,-151.0,0.00054794,120]
[381057184,1755978661348,-151.0,0.00054794,120]
[381057185,1755978661357,-170.76223,0.00054794,120]
[381057186,1755978661366,-170.76223,0.00054794,120]
[381057187,1755978661375,-170.76223,0.00054794,120]
[381057188,1755978661384,-170.76223,0.00054794,120]
[381057189,1755978661393,-170.76223,0.00054794,120]
[381057190,1755978661402,-170.76224,0.00054794,120]
[381057191,1755978661411,-480.0,0.00054794,120]
[381057192,1755978661420,-686.71,0.00054794,120]
[381057193,1755978661429,-480.0,0.00054794,120]
[381057194,1755978661439,-480.0,0.00054794,120]
[381057195,1755978661448,-480.0,0.00054794,120]
[381057196,1755978661457,-1127.82,0.00054794,120]
[381057197,1755978661466,-480.0,0.00054794,120]
[381057198,1755978661475,-480.0,0.00054794,120]
[381057199,1755978661483,-461.42690803,0.00054794,120]
[381057200,1755978661492,-480.0,0.00054794,120]
[381057201,1755978661502,-480.0,0.00054794,120]
[381057202,1755978661511,-1060.13,0.00054794,120]
[381057203,1755978661520,-151.0,0.00054794,120]
[381057204,1755978661530,-245.878208,0.00054794,120]
[381057205,1755978661540,-480.0,0.00054794,120]
[381057206,1755978661549,-480.0,0.00054794,120]
[381057207,1755978661559,-151.0,0.00054794,120]
[381057208,1755978661568,-151.0,0.00054794,120]
[381057209,1755978661578,-538.070736,0.00054794,120]
[381057210,1755978661589,-538.070736,0.00054794,120]
[381057211,1755978661598,-480.0,0.00054794,120]
[381057212,1755978661609,-538.070736,0.00054794,120]
[381057213,1755978661618,-538.070736,0.00054794,120]
[381057214,1755978661628,-540.42,0.00054794,120]
[381057215,1755978661637,-514.58,0.00054794,120]
[381057216,1755978661648,-538.070736,0.00054794,120]
[381057217,1755978661660,-1361.58,0.00054794,120]
[381057218,1755978661669,-538.070736,0.00054794,120]
[381057219,1755978661682,-480.0,0.00054794,120]
[381057220,1755978661691,-480.0,0.00054794,120]
[381057221,1755978661701,-538.070736,0.00054794,120]
[381057222,1755978661711,-538.070732,0.00054794,120]
[381057223,1755978661720,-151.0,0.00054794,120]
[381057224,1755978661730,-151.0,0.00054794,120]
[381057225,1755978661740,-480.0,0.00054794,120]
[381057226,1755978661749,-1752.92,0.00054794,120]
[381057227,1755978661759,-178.9068,0.00054794,120]
[381057228,1755978661769,-480.0,0.00054794,120]
[381057229,1755978661778,-746.06,0.00054794,120]
[381057230,1755978661788,-480.0,0.00054794,120]
[381057231,1755978661797,-1984.17,0.00054794,120]
[381057232,1755978661806,-480.0,0.00054794,7]
[381057233,1755978661816,-3384.74,0.00054794,120]
[381057234,1755978661826,-480.0,0.00054794,120]
[381057235,1755978661836,-480.0,0.00054794,120]
[381057236,1755978661846,-573.47,0.00054794,120]
[381057237,1755978661855,-673.81,0.00054794,120]
[381057238,1755978661864,-3102.98,0.00054794,120]
[381057239,1755978661874,-574.947631,0.00054794,120]
[381057240,1755978661884,-574.947631,0.00054794,120]
[381057241,1755978661893,-463.72129825,0.00054794,120]
[381057242,1755978661903,-574.947631,0.00054794,120]
[381057243,1755978661912,-574.947631,0.00054794,120]
[381057244,1755978661922,-480.0,0.00054794,120]
[381057245,1755978661931,-461.49519789,0.00054794,120]
[381057246,1755978661941,-1010.84,0.00054794,120]
[381057247,1755978661950,-460.56831533,0.00054794,120]
[381057248,1755978661959,-574.947631,0.00054794,120]
[381057249,1755978661968,-574.947631,0.00054794,120]
[381057250,1755978661979,-480.0,0.00054794,120]
[381057251,1755978661989,-441.54708374,0.00054794,120]
[381057252,1755978661999,-574.947631,0.00054794,120]
[381057253,1755978662010,-574.947629,0.00054794,120]
[381057254,1755978662019,-842.77,0.00054794,120]
[381057255,1755978662029,-480.0,0.00054794,120]
[381057256,1755978662154,-480.0,0.00054794,120]
[381057257,1755978662169,-480.6773703,0.00054794,120]
[381057258,1755978662179,-614.32,0.00054794,120]
[381057259,1755978662189,-480.0,0.00054794,120]
[381057260,1755978662205,-19767.88,0.00054794,120]
[381057261,1755978662221,-480.0,0.00054794,120]
[381057262,1755978662231,-480.0,0.00054794,120]
[381057263,1755978662242,-480.0,0.00054794,120]
[381057264,1755978662251,-566.72538516,0.00054794,120]
[381057265,1755978662261,-1572.85,0.00054794,120]
[381057266,1755978662272,-480.0,0.00054794,120]
[381057267,1755978662282,-480.0,0.00054794,120]
[381057268,1755978662293,-480.0,0.00054794,120]
[381057269,1755978662302,-552.24782283,0.00054794,120]
[381057270,1755978662311,-526.93,0.00054794,120]
[381057271,1755978662321,-1803.54,0.00054794,120]
[381057272,1755978662330,-526.93,0.00054794,120]
[381057273,1755978662341,-526.93,0.00054794,120]
[381057274,1755978662350,-1242.58,0.00054794,120]
[381057275,1755978662360,-526.93,0.00054794,120]
[381057276,1755978662371,-526.93,0.00054794,120]
[381057277,1755978662381,-526.93,0.00054794,120]
[381057278,1755978662392,-526.93,0.00054794,120]
[381057279,1755978662401,-819.3,0.00054794,120]
[381057280,1755978662411,-526.93,0.00054794,120]
[381057281,1755978662420,-526.93,0.00054794,120]
[381057282,1755978662429,-526.93,0.00054794,120]
[381057283,1755978662439,-526.93,0.00054794,120]
[381057284,1755978662450,-526.93,0.00054794,120]
[381057285,1755978662459,-480.0,0.00054794,120]
[381057286,1755978662468,-526.93,0.00054794,120]
[381057287,1755978662478,-526.93,0.00054794,120]
[381057288,1755978662487,-526.93,0.00054794,120]
[381057289,1755978662498,-526.93,0.00054794,120]
[381057290,1755978662507,-526.93,0.00054794,120]
[381057291,1755978662518,-480.0,0.00054794,120]
[381057292,1755978662527,-526.93,0.00054794,120]
[381057293,1755978662537,-1438.11,0.00054794,120]
[381057294,1755978662547,-526.93,0.00054794,120]
[381057295,1755978662558,-526.93,0.00054794,120]
[381057296,1755978662568,-526.93,0.00054794,120]
[381057297,1755978662578,-526.93,0.00054794,120]
[381057298,1755978662588,-526.93,0.00054794,120]
[381057299,1755978662598,-527.15318228,0.00054794,120]
[381057300,1755978662610,-480.0,0.00054794,120]
[381057301,1755978662620,-480.0,0.00054794,120]
[381057302,1755978662630,-480.0,0.00054794,120]
[381057303,1755978662639,-480.0,0.00054794,120]
[381057304,1755978662649,-480.0,0.00054794,120]
[381057305,1755978662658,-480.0,0.00054794,120]
[381057306,1755978662668,-682.867911,0.00054794,120]
[381057307,1755978662679,-1196.99,0.00054794,120]
[381057308,1755978662688,-682.867911,0.00054794,120]
[381057309,1755978662697,-10076.82,0.00054794,120]
[381057310,1755978662706,-480.0,0.00054794,120]
[381057311,1755978662715,-682.867911,0.00054794,120]
[381057312,1755978662726,-480.0,0.00054794,120]
[381057313,1755978662735,-682.867911,0.00054794,120]
[381057314,1755978662744,-480.0,0.00054794,120]
[381057315,1755978662754,-480.0,0.00054794,120]
[381057316,1755978662766,-682.867911,0.00054794,120]
[381057317,1755978662775,-682.867911,0.00054794,120]
[381057318,1755978662785,-480.0,0.00054794,120]
[381057319,1755978662794,-682.867911,0.00054794,120]
[381057320,1755978662804,-682.867918,0.00054794,120]
[381057321,1755978662813,-505.7,0.00054794,120]
[381057322,1755978662822,-196.15466506,0.00054794,120]
[381057323,1755978662834,-560.31,0.00054794,120]
[381057324,1755978662844,-574.88260321,0.00054794,120]
[381057325,1755978662853,-480.0,0.00054794,120]
[381057326,1755978662862,-2935.12,0.00054794,120]
[381057327,1755978662870,-480.0,0.00054794,120]
[381057328,1755978662880,-480.0,0.00054794,120]
[381057329,1755978662889,-721.32,0.00054794,120]
[381057330,1755978662898,-254.192169,0.00054794,120]
[381057331,1755978662909,-254.192169,0.00054794,120]
[381057332,1755978662918,-1104.42,0.00054794,120]
[381057333,1755978662928,-151.0,0.00054794,120]
[381057334,1755978662937,-254.192169,0.00054794,120]
[381057335,1755978662946,-480.0,0.00054794,120]
[381057336,1755978662955,-151.0,0.00054794,120]
[381057337,1755978662964,-151.0,0.00054794,120]
[381057338,1755978662973,-254.192169,0.00054794,120]
[381057339,1755978662982,-151.0,0.00054794,120]
[381057340,1755978662992,-480.0,0.00054794,120]
[381057341,1755978663001,-480.0,0.00054794,120]
[381057342,1755978663011,-254.192169,0.00054794,120]
[381057343,1755978663021,-151.0,0.00054794,120]
[381057344,1755978663031,-254.192169,0.00054794,120]
[381057345,1755978663041,-151.0,0.00054794,120]
[381057346,1755978663051,-151.0,0.00054794,120]
[381057347,1755978663061,-151.0,0.00054794,120]
[381057348,1755978663071,-480.0,0.00054794,120]
[381057349,1755978663080,-254.192169,0.00054794,120]
[381057350,1755978663090,-254.192175,0.00054794,120]
[381057351,1755978663100,-480.0,0.00054794,120]
[381057352,1755978663109,-151.0,0.00054794,120]
[381057353,1755978663119,-760.378152,0.00054794,120]
[381057354,1755978663128,-760.378152,0.00054794,120]
[381057355,1755978663137,-151.0,0.00054794,120]
[381057356,1755978663147,-698.61,0.00054794,120]
[381057357,1755978663156,-760.378152,0.00054794,120]
[381057358,1755978663167,-151.0,0.00054794,120]
[381057359,1755978663176,-760.378152,0.00054794,120]
[381057360,1755978663186,-2096.52,0.00054794,120]
[381057361,1755978663196,-151.0,0.00054794,120]
[381057362,1755978663206,-915.49,0.00054794,120]
[381057363,1755978663217,-192.308819,0.00054794,120]
[381057364,1755978663227,-2625.48,0.00054794,120]
[381057365,1755978663237,-480.0,0.00054794,120]
[381057366,1755978663247,-760.378152,0.00054794,120]
[381057367,1755978663258,-760.378152,0.00054794,120]
[381057368,1755978663267,-480.0,0.00054794,120]
[381057369,1755978663277,-760.378152,0.00054794,120]
[381057370,1755978663286,-658.22,0.00054794,120]
[381057371,1755978663296,-760.378161,0.00054794,120]
[381057372,1755978663306,-480.0,0.00054794,120]
[381057373,1755978663316,-480.0,0.00054794,120]
[381057374,1755978663325,-480.0,0.00054794,120]
[381057375,1755978663335,-766.17,0.00054794,120]
[381057376,1755978663344,-480.0,0.00054794,120]
[381057377,1755978663354,-1407.91,0.00054794,120]
[381057378,1755978663364,-480.0,0.00054794,120]
[381057379,1755978663373,-480.0,0.00054794,120]
[381057380,1755978663383,-480.0,0.00054794,120]
[381057381,1755978663393,-480.0,0.00054794,120]
[381057382,1755978663403,-709.243867,0.00054794,120]
[381057383,1755978663412,-709.243867,0.00054794,120]
[381057384,1755978663421,-480.0,0.00054794,120]
[381057385,1755978663431,-480.0,0.00054794,120]
[381057386,1755978663440,-709.243867,0.00054794,120]
[381057387,1755978663450,-1054.92,0.00054794,120]
[381057388,1755978663459,-709.243867,0.00054794,120]
[381057389,1755978663477,-480.0,0.00054794,120]
[381057390,1755978663491,-480.0,0.00054794,120]
[381057391,1755978663503,-500.0,0.00054794,120]
[381057392,1755978663513,-709.243867,0.00054794,120]
[381057393,1755978663523,-464.64492032,0.00054794,120]
[381057394,1755978663532,-709.243867,0.00054794,120]
[381057395,1755978663542,-480.0,0.00054794,120]
[381057396,1755978663551,-709.243867,0.00054794,120]
[381057397,1755978663561,-2002.42,0.00054794,120]
[381057398,1755978663571,-709.243873,0.00054794,120]
[381057399,1755978663582,-480.0,0.00054794,120]
[381057400,1755978663592,-480.0,0.00054794,120]
[381057401,1755978663602,-480.0,0.00054794,120]
[381057402,1755978663612,-480.0,0.00054794,120]
[381057403,1755978663623,-483.23390227,0.00054794,120]
[381057404,1755978663634,-480.0,0.00054794,120]
[381057405,1755978663644,-480.0,0.00054794,120]
[381057406,1755978663654,-480.0,0.00054794,120]
[381057407,1755978663664,-480.0,0.00054794,120]
[381057408,1755978663675,-846.16,0.00054794,120]
[381057409,1755978663687,-548.07,0.00054794,120]
[381057410,1755978663697,-480.0,0.00054794,120]
[381057411,1755978663706,-7266.88,0.00054794,120]
[381057412,1755978663716,-3523.58,0.00054794,120]
[381057413,1755978663726,-7398.11,0.00054794,120]
[381057414,1755978663736,-480.0,0.00054794,120]
[381057415,1755978663746,-2723.94,0.00054794,120]
[381057416,1755978663757,-480.0,0.00054794,120]
[381057417,1755978663768,-2304.28564,0.00054794,120]
[381057418,1755978663777,-2304.28564,0.00054794,120]
[381057419,1755978663787,-2304.28564,0.00054794,120]
[381057420,1755978663796,-480.0,0.00054794,120]
[381057421,1755978663806,-2304.28564,0.00054794,120]
[381057422,1755978663815,-480.0,0.00054794,120]
[381057423,1755978663824,-2304.28564,0.00054794,120]
[381057424,1755978663833,-461.03405347,0.00054794,120]
[381057425,1755978663844,-2304.28564,0.00054794,120]
[381057426,1755978663853,-1219.67,0.00054794,120]
[381057427,1755978663864,-1476.53,0.00054794,120]
[381057428,1755978663875,-841.87,0.00054794,120]
[381057429,1755978663884,-721.1,0.00054794,120]
[381057430,1755978663894,-480.0,0.00054794,120]
[381057431,1755978663904,-480.0,0.00054794,120]
[381057432,1755978663914,-2304.28564,0.00054794,120]
[381057433,1755978663923,-723.24,0.00054794,120]
[381057434,1755978663932,-480.0,0.00054794,120]
[381057435,1755978663941,-2304.285641,0.00054794,120]
[381057436,1755978663950,-1177.44,0.00054794,120]
[381057437,1755978663959,-438.38033507,0.00054794,120]
[381057438,1755978663968,-480.0,0.00054794,120]
[381057439,1755978663978,-480.0,0.00054794,120]
[381057440,1755978663988,-480.0,0.00054794,120]
[381057441,1755978663997,-1079.71,0.00054794,120]
[381057442,1755978664006,-181.309181,0.00054794,30]
[381057443,1755978664016,-181.309181,0.00054794,30]
[381057444,1755978664025,-181.309181,0.00054794,30]
[381057445,1755978664035,-181.309181,0.00054794,30]
[381057446,1755978664044,-480.0,0.00054794,120]
[381057447,1755978664054,-480.0,0.00054794,120]
[381057448,1755978664063,-480.0,0.00054794,120]
[381057449,1755978664073,-181.309181,0.00054794,30]
[381057450,1755978664082,-181.309181,0.00054794,30]
[381057451,1755978664092,-1212.46,0.00054794,120]
[381057452,1755978664102,-1563.84,0.00054794,120]
[381057453,1755978664111,-181.309181,0.00054794,30]
[381057454,1755978664120,-480.0,0.00054794,120]
[381057455,1755978664130,-181.309185,0.00054794,30]
[381057456,1755978664140,-2237.41,0.00054794,120]
[381057457,1755978664149,-480.0,0.00054794,120]
[381057458,1755978664159,-539.36564777,0.00054794,120]
[381057459,1755978664169,-480.0,0.00054794,120]
[381057460,1755978664178,-3009.19,0.00054794,120]
[381057461,1755978664188,-558.11308035,0.00054794,120]
[381057462,1755978664197,-209.082773,0.00054794,120]
[381057463,1755978664206,-209.082773,0.00054794,120]
[381057464,1755978664215,-1476.87,0.00054794,120]
[381057465,1755978664225,-1066.69,0.00054794,120]
[381057466,1755978664234,-964.71,0.00054794,120]
[381057467,1755978664243,-480.0,0.00054794,120]
[381057468,1755978664363,-480.0,0.00054794,120]
[381057469,1755978664374,-209.082773,0.00054794,120]
[381057470,1755978664383,-480.0,0.00054794,120]
[381057471,1755978664393,-209.082773,0.00054794,120]
[381057472,1755978664403,-241.3427466,0.00054794,120]
[381057473,1755978664413,-151.0,0.00054794,120]
[381057474,1755978664422,-151.0,0.00054794,120]
[381057475,1755978664431,-1973.84,0.00054794,120]
[381057476,1755978664441,-209.082773,0.00054794,120]
[381057477,1755978664450,-209.082773,0.00054794,120]
[381057478,1755978664461,-151.0,0.00054794,120]
[381057479,1755978664470,-151.0,0.00054794,120]
[381057480,1755978664479,-1367.19,0.00054794,120]
[381057481,1755978664488,-209.082773,0.00054794,120]
[381057482,1755978664498,-209.082778,0.00054794,120]
[381057483,1755978664508,-480.0,0.00054794,120]
[381057484,1755978664518,-151.0,0.00054794,120]
[381057485,1755978664527,-151.0,0.00054794,120]
[381057486,1755978664537,-2632.71,0.00054794,120]
[381057487,1755978664547,-480.0,0.00054794,120]
[381057488,1755978664556,-2000.94,0.00054794,120]
[381057489,1755978664568,-224.68469398,0.00054794,120]
[381057490,1755978664578,-2138.35,0.00054794,120]
[381057491,1755978664587,-982.65,0.00054794,120]
[381057492,1755978664596,-644.98,0.00054794,120]
[381057493,1755978664606,-480.0,0.00054794,120]
[381057494,1755978664615,-2014.1,0.00054794,120]
[381057495,1755978664625,-480.0,0.00054794,120]
[381057496,1755978664634,-481.22,0.00054794,120]
[381057497,1755978664643,-541.69210891,0.00054794,120]
[381057498,1755978664652,-837.91,0.00054794,60]
[381057499,1755978664662,-480.0,0.00054794,30]
[381057500,1755978664671,-480.0,0.00054794,120]
[381057501,1755978664684,-480.0,0.00054794,120]
[381057502,1755978664694,-480.35927859,0.00054794,120]
[381057503,1755978664704,-480.0,0.00054794,120]
[381057504,1755978664714,-6241.26,0.00054794,120]
[381057505,1755978664724,-480.0,0.00054794,120]
[381057506,1755978664733,-480.0,0.00054794,120]
[381057507,1755978664742,-480.0,0.00054794,120]
[381057508,1755978664752,-520.47,0.00054794,120]
[381057509,1755978664762,-480.0,0.00054794,120]
[381057510,1755978664772,-480.0,0.00054794,120]
[381057511,1755978664782,-662.573363,0.00054794,120]
[381057512,1755978664791,-480.0,0.00054794,120]
[381057513,1755978664802,-480.0,0.00054794,120]
[381057514,1755978664811,-662.573363,0.00054794,120]
[381057515,1755978664820,-662.573363,0.00054794,120]
[381057516,1755978664829,-480.0,0.00054794,120]
[381057517,1755978664839,-480.0,0.00054794,120]
[381057518,1755978664849,-662.573363,0.00054794,120]
[381057519,1755978664858,-480.0,0.00054794,120]
[381057520,1755978664867,-441.125781,0.00054794,120]
[381057521,1755978664876,-1228.65,0.00054794,120]
[381057522,1755978664886,-480.0,0.00054794,120]
[381057523,1755978664895,-1022.48,0.00054794,120]
[381057524,1755978664904,-662.573363,0.00054794,120]
[381057525,1755978664913,-662.573363,0.00054794,120]
[381057526,1755978664923,-266.361362,0.00054794,120]
[381057527,1755978664933,-8994.33,0.00054794,120]
[381057528,1755978664942,-266.361362,0.00054794,120]
[381057529,1755978664951,-662.573363,0.00054794,120]
[381057530,1755978664960,-1839.07,0.00054794,120]
[381057531,1755978664970,-662.57336,0.00054794,120]
[381057532,1755978664979,-266.361362,0.00054794,120]
[381057533,1755978664988,-266.361362,0.00054794,120]
[381057534,1755978664997,-480.0,0.00054794,120]
[381057535,1755978665007,-480.0,0.00054794,120]
[381057536,1755978665016,-266.361362,0.00054794,120]
[381057537,1755978665025,-266.361362,0.00054794,120]
[381057538,1755978665034,-480.0,0.00054794,120]
[381057539,1755978665043,-266.361362,0.00054794,120]
[381057540,1755978665052,-266.36137,0.00054794,120]
[381057541,1755978665062,-480.0,0.00054794,120]
[381057542,1755978665072,-480.0,0.00054794,120]
[381057543,1755978665081,-480.0,0.00054794,120]
[381057544,1755978665090,-1074.03,0.00054794,120]
[381057545,1755978665099,-480.0,0.00054794,120]
[381057546,1755978665109,-261.038687,0.00054794,120]
[381057547,1755978665118,-261.038687,0.00054794,120]
[381057548,1755978665127,-480.0,0.00054794,120]
[381057549,1755978665136,-151.0,0.00054794,120]
[381057550,1755978665145,-1466.88,0.00054794,120]
[381057551,1755978665155,-151.0,0.00054794,120]
[381057552,1755978665165,-261.038687,0.00054794,120]
[381057553,1755978665174,-1181.62,0.00054794,120]
[381057554,1755978665183,-261.038687,0.00054794,120]
[381057555,1755978665193,-480.0,0.00054794,7]
[381057556,1755978665202,-480.0,0.00054794,120]
[381057557,1755978665211,-480.0,0.00054794,120]
[381057558,1755978665221,-480.0,0.00054794,120]
[381057559,1755978665230,-480.0,0.00054794,120]
[381057560,1755978665240,-261.038687,0.00054794,120]
[381057561,1755978665249,-261.038687,0.00054794,120]
[381057562,1755978665259,-1336.6,0.00054794,120]
[381057563,1755978665268,-261.038687,0.00054794,120]
[381057564,1755978665277,-261.038681,0.00054794,120]
[381057565,1755978665286,-480.0,0.00054794,120]
[381057566,1755978665296,-480.0,0.00054794,120]
[381057567,1755978665306,-480.0,0.00054794,120]
[381057568,1755978665315,-480.0,0.00054794,120]
[381057569,1755978665325,-2269.15,0.00054794,21]
[381057570,1755978665334,-13152.54,0.00054794,120]
[381057571,1755978665344,-490.69222152,0.00054794,120]
[381057572,1755978665353,-6453.88,0.00054794,120]
[381057573,1755978665363,-11538.11,0.00054794,120]
[381057574,1755978665372,-3021.72,0.00054794,120]
[381057575,1755978665381,-480.0,0.00054794,120]
[381057576,1755978665391,-1041.26,0.00054794,120]
[381057577,1755978665401,-3357.01,0.00054794,120]
[381057578,1755978665411,-480.0,0.00054794,120]
[381057579,1755978665421,-154.139082,0.00054794,120]
[381057580,1755978665430,-154.139082,0.00054794,120]
[381057581,1755978665440,-480.0,0.00054794,120]
[381057582,1755978665449,-151.0,0.00054794,120]
[381057583,1755978665459,-480.0,0.00054794,120]
[381057584,1755978665468,-151.0,0.00054794,120]
[381057585,1755978665477,-154.139082,0.00054794,120]
[381057586,1755978665486,-154.139082,0.00054794,120]
[381057587,1755978665495,-480.0,0.00054794,120]
[381057588,1755978665504,-944.86,0.00054794,120]
[381057589,1755978665513,-1853.68,0.00054794,120]
[381057590,1755978665523,-154.139082,0.00054794,120]
[381057591,1755978665533,-151.0,0.00054794,120]
[381057592,1755978665543,-154.139082,0.00054794,120]
[381057593,1755978665552,-154.139082,0.00054794,120]
[381057594,1755978665561,-154.139077,0.00054794,120]
[381057595,1755978665570,-480.0,0.00054794,120]
[381057596,1755978665579,-2320.42,0.00054794,120]
[381057597,1755978665588,-480.0,0.00054794,120]
[381057598,1755978665597,-480.0,0.00054794,120]
[381057599,1755978665606,-7805.62,0.00054794,120]
[381057600,1755978665615,-480.0,0.00054794,120]
[381057601,1755978665627,-7159.55,0.00054794,120]
[381057602,1755978665635,-480.0,0.00054794,120]
[381057603,1755978665645,-522.739649,0.00054794,120]
[381057604,1755978665654,-522.739649,0.00054794,120]
[381057605,1755978665663,-480.0,0.00054794,120]
[381057606,1755978665673,-480.0,0.00054794,120]
[381057607,1755978665685,-522.739649,0.00054794,120]
[381057608,1755978665695,-480.0,0.00054794,120]
[381057609,1755978665706,-522.739649,0.00054794,120]
[381057610,1755978665716,-480.0,0.00054794,120]
[381057611,1755978665727,-608.43,0.00054794,120]
[381057612,1755978665736,-522.739649,0.00054794,120]
[381057613,1755978665745,-522.739649,0.00054794,120]
[381057614,1755978665756,-480.0,0.00054794,120]
[381057615,1755978665766,-522.739649,0.00054794,120]
[381057616,1755978665775,-480.0,0.00054794,120]
[381057617,1755978665784,-522.739655,0.00054794,120]
[381057618,1755978665793,-747.24,0.00054794,120]
[381057619,1755978665803,-505.118302,0.00054794,120]
[381057620,1755978665812,-480.0,0.00054794,120]
[381057621,1755978665821,-505.118302,0.00054794,120]
[381057622,1755978665830,-658.38,0.00054794,120]
[381057623,1755978665840,-505.118302,0.00054794,120]
[381057624,1755978665849,-480.0,0.00054794,120]
[381057625,1755978665858,-505.118302,0.00054794,120]
[381057626,1755978665868,-151.0,0.00054794,120]
[381057627,1755978665878,-151.0,0.00054794,120]
[381057628,1755978665888,-505.118302,0.00054794,120]
[381057629,1755978665897,-505.118302,0.00054794,120]
[381057630,1755978665906,-560.2,0.00054794,120]
[381057631,1755978665916,-480.0,0.00054794,120]
[381057632,1755978665926,-2047.15,0.00054794,120]
[381057633,1755978665936,-480.0,0.00054794,120]
[381057634,1755978665945,-693.79,0.00054794,120]
[381057635,1755978665954,-505.118302,0.00054794,120]
[381057636,1755978665963,-505.118296,0.00054794,120]
[381057637,1755978665972,-151.0,0.00054794,120]
[381057638,1755978665981,-151.0,0.00054794,120]
[381057639,1755978665991,-3406.98,0.00054794,120]
[381057640,1755978666000,-932.66,0.00054794,120]
[381057641,1755978666009,-151.0,0.00054794,120]
[381057642,1755978666018,-480.0,0.00054794,120]
[381057643,1755978666028,-151.0,0.00054794,120]
[381057644,1755978666037,-480.0,0.00054794,120]
[381057645,1755978666047,-267.636651,0.00054794,120]
[381057646,1755978666056,-2269.76,0.00054794,120]
[381057647,1755978666065,-480.0,0.00054794,120]
[381057648,1755978666074,-480.0,0.00054794,120]
[381057649,1755978666084,-939.07,0.00054794,120]
[381057650,1755978666094,-1292.5,0.00054794,120]
[381057651,1755978666103,-644.158099,0.00054794,120]
[381057652,1755978666113,-644.158099,0.00054794,120]
[381057653,1755978666122,-644.158099,0.00054794,120]
[381057654,1755978666131,-644.158099,0.00054794,120]
[381057655,1755978666141,-4870.93,0.00054794,120]
[381057656,1755978666151,-480.0,0.00054794,120]
[381057657,1755978666160,-644.158099,0.00054794,120]
[381057658,1755978666169,-644.158099,0.00054794,120]
[381057659,1755978666178,-260.361325,0.00054794,15]
[381057660,1755978666187,-260.361325,0.00054794,15]
[381057661,1755978666196,-288.00165145,0.00054794,120]
[381057662,1755978666206,-480.0,0.00054794,7]
[381057663,1755978666318,-260.361325,0.00054794,15]
[381057664,1755978666328,-3343.74,0.00054794,120]
[381057665,1755978666337,-644.158099,0.00054794,120]
[381057666,1755978666347,-260.361325,0.00054794,15]
[381057667,1755978666357,-644.158102,0.00054794,120]
[381057668,1755978666368,-480.0,0.00054794,120]
[381057669,1755978666378,-260.361325,0.00054794,15]
[381057670,1755978666388,-480.0,0.00054794,120]